[Event "Titled Tuesday Blitz August 16 Late 2022"]
[White "Mickiewicz, Piotr"]
[Black "Ambartsumova, Karina"]
[WhiteFideId "1114891"]
[BlackFideId "4166299"]
[WhiteElo "2266"]
[BlackElo "2262"]
[Result "1/2-1/2"]
[Round "11"]
[TimeControl "180+1"]
[Date "2022.08.18"]
[WhiteClock "0:00:00"]
[BlackClock "0:00:00"]

1. e4 {[%clk 0:00:00]}  e5 {[%clk 0:00:00]} 2. Nf3 {[%clk 0:00:00]}  d5 {[%clk 0:00:00]} 3. exd5 {[%clk 0:00:00]}  e4 {[%clk 0:00:00]} 4. Nd4 {[%clk 0:00:00]}  Qxd5 {[%clk 0:00:00]} 5. Nb3 {[%clk 0:00:00]}  Bd6 {[%clk 0:00:00]} 6. Nc3 {[%clk 0:00:00]}  Qe5 {[%clk 0:00:00]} 7. Nb5 {[%clk 0:00:00]}  Nf6 {[%clk 0:00:00]} 8. Nxd6+ {[%clk 0:00:00]}  Qxd6 {[%clk 0:00:00]} 9. d3 {[%clk 0:00:00]}  O-O {[%clk 0:00:00]} 10. dxe4 {[%clk 0:00:00]}  Qxd1+ {[%clk 0:00:00]} 11. Kxd1 {[%clk 0:00:00]}  Nxe4 {[%clk 0:00:00]} 12. Be3 {[%clk 0:00:00]}  Rd8+ {[%clk 0:00:00]} 13. Bd3 {[%clk 0:00:00]}  Nc6 {[%clk 0:00:00]} 14. Ke2 {[%clk 0:00:00]}  Nf6 {[%clk 0:00:00]} 15. Rhe1 {[%clk 0:00:00]}  Nd5 {[%clk 0:00:00]} 16. Bd2 {[%clk 0:00:00]}  Ndb4 {[%clk 0:00:00]} 17. Bxb4 {[%clk 0:00:00]}  Nxb4 {[%clk 0:00:00]} 18. Rad1 {[%clk 0:00:00]}  Bg4+ {[%clk 0:00:00]} 19. f3 {[%clk 0:00:00]}  Be6 {[%clk 0:00:00]} 20. Nc5 {[%clk 0:00:00]}  Nxd3 {[%clk 0:00:00]} 21. Nxe6 {[%clk 0:00:00]}  Nxe1 {[%clk 0:00:00]} 22. Rxd8+ {[%clk 0:00:00]}  Rxd8 {[%clk 0:00:00]} 23. Nxd8 {[%clk 0:00:00]}  Nxg2 {[%clk 0:00:00]} 24. Nxb7 {[%clk 0:00:00]}  Kf8 {[%clk 0:00:00]} 25. a4 {[%clk 0:00:00]}  Ke7 {[%clk 0:00:00]} 26. b4 {[%clk 0:00:00]}  Nf4+ {[%clk 0:00:00]} 27. Kd2 {[%clk 0:00:00]}  g5 {[%clk 0:00:00]} 28. c4 {[%clk 0:00:00]}  h5 {[%clk 0:00:00]} 29. c5 {[%clk 0:00:00]}  Nd5 {[%clk 0:00:00]} 30. b5 {[%clk 0:00:00]}  g4 {[%clk 0:00:00]} 31. fxg4 {[%clk 0:00:00]}  hxg4 {[%clk 0:00:00]} 32. Na5 {[%clk 0:00:00]}  f5 {[%clk 0:00:00]} 33. Nc6+ {[%clk 0:00:00]}  Kd7 {[%clk 0:00:00]} 34. Nxa7 {[%clk 0:00:00]}  f4 {[%clk 0:00:00]} 35. Nc6 {[%clk 0:00:00]}  g3 {[%clk 0:00:00]} 36. hxg3 {[%clk 0:00:00]}  fxg3 {[%clk 0:00:00]} 37. Ke2 {[%clk 0:00:00]}  Nc3+ {[%clk 0:00:00]} 38. Kf3 {[%clk 0:00:00]}  Nxa4 {[%clk 0:00:00]} 39. Nb8+ {[%clk 0:00:00]}  Ke6 {[%clk 0:00:00]} 40. Na6 {[%clk 0:00:00]}  Kd5 {[%clk 0:00:00]} 41. Nxc7+ {[%clk 0:00:00]}  Kxc5 {[%clk 0:00:00]} 42. Kxg3 {[%clk 0:00:00]}  Nc3 {[%clk 0:00:00]} 43. Ne6+ {[%clk 0:00:00]}  Kxb5 {[%clk 0:00:00]} 1/2-1/2


[Site "https://www.chess.com"]

[Event "Titled Tuesday Blitz August 16 Late 2022"]
[White "Moore, Alex"]
[Black "Barash, Anton"]
[WhiteFideId "30910692"]
[BlackFideId "30935229"]
[WhiteElo "1912"]
[BlackElo "2088"]
[Result "1-0"]
[Round "11"]
[TimeControl "180+1"]
[Date "2022.08.18"]
[WhiteClock "0:00:00"]
[BlackClock "0:00:00"]

1. d4 {[%clk 0:00:00]}  d5 {[%clk 0:00:00]} 2. c4 {[%clk 0:00:00]}  e6 {[%clk 0:00:00]} 3. Nc3 {[%clk 0:00:00]}  Be7 {[%clk 0:00:00]} 4. Nf3 {[%clk 0:00:00]}  Nf6 {[%clk 0:00:00]} 5. cxd5 {[%clk 0:00:00]}  exd5 {[%clk 0:00:00]} 6. Bg5 {[%clk 0:00:00]}  O-O {[%clk 0:00:00]} 7. e3 {[%clk 0:00:00]}  b6 {[%clk 0:00:00]} 8. Bd3 {[%clk 0:00:00]}  Bb7 {[%clk 0:00:00]} 9. O-O {[%clk 0:00:00]}  c5 {[%clk 0:00:00]} 10. dxc5 {[%clk 0:00:00]}  bxc5 {[%clk 0:00:00]} 11. Qe2 {[%clk 0:00:00]}  Ne4 {[%clk 0:00:00]} 12. Bxe7 {[%clk 0:00:00]}  Qxe7 {[%clk 0:00:00]} 13. Rac1 {[%clk 0:00:00]}  Nd7 {[%clk 0:00:00]} 14. Rfd1 {[%clk 0:00:00]}  Nxc3 {[%clk 0:00:00]} 15. Rxc3 {[%clk 0:00:00]}  Nf6 {[%clk 0:00:00]} 16. Ba6 {[%clk 0:00:00]}  Bc6 {[%clk 0:00:00]} 17. Rcc1 {[%clk 0:00:00]}  Rab8 {[%clk 0:00:00]} 18. b3 {[%clk 0:00:00]}  Ne4 {[%clk 0:00:00]} 19. Nd2 {[%clk 0:00:00]}  Nxd2 {[%clk 0:00:00]} 20. Qxd2 {[%clk 0:00:00]}  Rb6 {[%clk 0:00:00]} 21. Bf1 {[%clk 0:00:00]}  Rfb8 {[%clk 0:00:00]} 22. Qa5 {[%clk 0:00:00]}  c4 {[%clk 0:00:00]} 23. bxc4 {[%clk 0:00:00]}  dxc4 {[%clk 0:00:00]} 24. Rxc4 {[%clk 0:00:00]}  Bb5 {[%clk 0:00:00]} 25. Rcd4 {[%clk 0:00:00]}  a6 {[%clk 0:00:00]} 26. Bxb5 {[%clk 0:00:00]}  axb5 {[%clk 0:00:00]} 27. g3 {[%clk 0:00:00]}  g6 {[%clk 0:00:00]} 28. Rd7 {[%clk 0:00:00]}  Qe6 {[%clk 0:00:00]} 29. Qc3 {[%clk 0:00:00]}  Ra8 {[%clk 0:00:00]} 30. Rd8+ {[%clk 0:00:00]}  Rxd8 {[%clk 0:00:00]} 31. Rxd8+ {[%clk 0:00:00]} 1-0


[Site "https://www.chess.com"]

[Event "Titled Tuesday Blitz August 16 Late 2022"]
[White "Naroditsky, Daniel"]
[Black "Paravyan, David"]
[WhiteFideId "2026961"]
[BlackFideId "4194985"]
[WhiteElo "2628"]
[BlackElo "2569"]
[Result "1-0"]
[Round "11"]
[TimeControl "180+1"]
[Date "2022.08.16"]
[WhiteClock "0:00:10"]
[BlackClock "0:00:06"]

1. e4 {[%clk 0:03:00]}  e5 {[%clk 0:03:00]} 2. Nf3 {[%clk 0:03:00]}  Nf6 {[%clk 0:03:01]} 3. Nxe5 {[%clk 0:02:55]}  d6 {[%clk 0:03:01]} 4. Nf3 {[%clk 0:02:41]}  Nxe4 {[%clk 0:02:53]} 5. Bd3 {[%clk 0:02:42]}  d5 {[%clk 0:02:53]} 6. O-O {[%clk 0:02:40]}  Bd6 {[%clk 0:02:53]} 7. Nc3 {[%clk 0:02:39]}  Nxc3 {[%clk 0:02:46]} 8. dxc3 {[%clk 0:02:40]}  O-O {[%clk 0:02:46]} 9. h3 {[%clk 0:02:36]}  h6 {[%clk 0:02:42]} 10. c4 {[%clk 0:02:33]}  dxc4 {[%clk 0:02:34]} 11. Bxc4 {[%clk 0:02:33]}  Nc6 {[%clk 0:02:34]} 12. c3 {[%clk 0:02:30]}  Qf6 {[%clk 0:02:32]} 13. Bd3 {[%clk 0:01:57]}  Bf5 {[%clk 0:02:29]} 14. Bxf5 {[%clk 0:01:52]}  Qxf5 {[%clk 0:02:29]} 15. Nd4 {[%clk 0:01:48]}  Qe5 {[%clk 0:02:25]} 16. Nf3 {[%clk 0:01:47]}  Qf5 {[%clk 0:02:23]} 17. Nd4 {[%clk 0:01:47]}  Nxd4 {[%clk 0:02:23]} 18. Qxd4 {[%clk 0:01:48]}  Rfd8 {[%clk 0:02:15]} 19. Qc4 {[%clk 0:01:40]}  b5 {[%clk 0:02:13]} 20. Qc6 {[%clk 0:01:37]}  Qc5 {[%clk 0:02:02]} 21. Qxc5 {[%clk 0:01:32]}  Bxc5 {[%clk 0:02:02]} 22. Bf4 {[%clk 0:01:33]}  Rd7 {[%clk 0:01:55]} 23. Rfd1 {[%clk 0:01:27]}  Rad8 {[%clk 0:01:54]} 24. Rxd7 {[%clk 0:01:24]}  Rxd7 {[%clk 0:01:55]} 25. h4 {[%clk 0:01:09]}  f6 {[%clk 0:01:50]} 26. Re1 {[%clk 0:01:05]}  Kf7 {[%clk 0:01:50]} 27. Kf1 {[%clk 0:01:02]}  g5 {[%clk 0:01:50]} 28. hxg5 {[%clk 0:01:03]}  hxg5 {[%clk 0:01:50]} 29. Be3 {[%clk 0:01:03]}  Bxe3 {[%clk 0:01:49]} 30. Rxe3 {[%clk 0:01:04]}  Rd2 {[%clk 0:01:46]} 31. Re2 {[%clk 0:01:04]}  Rd1+ {[%clk 0:01:46]} 32. Re1 {[%clk 0:01:05]}  Rxe1+ {[%clk 0:01:47]} 33. Kxe1 {[%clk 0:01:05]}  Ke6 {[%clk 0:01:48]} 34. Ke2 {[%clk 0:01:06]}  Kd5 {[%clk 0:01:43]} 35. Kd3 {[%clk 0:01:02]}  c5 {[%clk 0:01:17]} 36. b3 {[%clk 0:00:40]}  Ke5 {[%clk 0:01:15]} 37. Ke3 {[%clk 0:00:38]}  f5 {[%clk 0:01:13]} 38. c4 {[%clk 0:00:22]}  bxc4 {[%clk 0:00:48]} 39. bxc4 {[%clk 0:00:22]}  f4+ {[%clk 0:00:49]} 40. Kd3 {[%clk 0:00:21]}  g4 {[%clk 0:00:26]} 41. f3 {[%clk 0:00:14]}  Kf5 {[%clk 0:00:25]} 42. fxg4+ {[%clk 0:00:09]}  Kxg4 {[%clk 0:00:25]} 43. Ke4 {[%clk 0:00:09]}  a6 {[%clk 0:00:09]} 44. a3 {[%clk 0:00:10]}  a5 {[%clk 0:00:09]} 45. a4 {[%clk 0:00:10]}  Kg5 {[%clk 0:00:09]} 46. Ke5 {[%clk 0:00:10]}  Kg4 {[%clk 0:00:09]} 47. Kf6 {[%clk 0:00:10]}  Kg3 {[%clk 0:00:04]} 48. Kf5 {[%clk 0:00:07]}  Kxg2 {[%clk 0:00:03]} 49. Kxf4 {[%clk 0:00:08]}  Kf2 {[%clk 0:00:04]} 50. Ke4 {[%clk 0:00:08]}  Ke2 {[%clk 0:00:04]} 51. Kd5 {[%clk 0:00:09]}  Kd3 {[%clk 0:00:05]} 52. Kxc5 {[%clk 0:00:09]}  Kc3 {[%clk 0:00:06]} 53. Kb5 {[%clk 0:00:10]} 1-0


[Site "https://www.chess.com"]

[Event "Titled Tuesday Blitz August 16 Late 2022"]
[White "Perez Cruz, Adianet"]
[Black "Vargas, Mauricio"]
[WhiteFideId "3510115"]
[BlackFideId "4404572"]
[WhiteElo "1976"]
[BlackElo "2004"]
[Result "1-0"]
[Round "11"]
[TimeControl "180+1"]
[Date "2022.08.18"]
[WhiteClock "0:00:00"]
[BlackClock "0:00:00"]

1. d4 {[%clk 0:00:00]}  d5 {[%clk 0:00:00]} 2. Nf3 {[%clk 0:00:00]}  Bg4 {[%clk 0:00:00]} 3. e3 {[%clk 0:00:00]}  e6 {[%clk 0:00:00]} 4. h3 {[%clk 0:00:00]}  Bf5 {[%clk 0:00:00]} 5. Bd3 {[%clk 0:00:00]}  Bd6 {[%clk 0:00:00]} 6. b3 {[%clk 0:00:00]}  c6 {[%clk 0:00:00]} 7. Bb2 {[%clk 0:00:00]}  Nd7 {[%clk 0:00:00]} 8. Bxf5 {[%clk 0:00:00]}  exf5 {[%clk 0:00:00]} 9. Nbd2 {[%clk 0:00:00]}  Ngf6 {[%clk 0:00:00]} 10. Ne5 {[%clk 0:00:00]}  Ne4 {[%clk 0:00:00]} 11. O-O {[%clk 0:00:00]}  O-O {[%clk 0:00:00]} 12. f4 {[%clk 0:00:00]}  Ndf6 {[%clk 0:00:00]} 13. Ndf3 {[%clk 0:00:00]}  Ng3 {[%clk 0:00:00]} 14. Re1 {[%clk 0:00:00]}  Nfe4 {[%clk 0:00:00]} 15. c4 {[%clk 0:00:00]}  f6 {[%clk 0:00:00]} 16. Nd3 {[%clk 0:00:00]}  Qe8 {[%clk 0:00:00]} 17. cxd5 {[%clk 0:00:00]}  cxd5 {[%clk 0:00:00]} 18. Rc1 {[%clk 0:00:00]}  Rd8 {[%clk 0:00:00]} 19. Nc5 {[%clk 0:00:00]}  b6 {[%clk 0:00:00]} 20. Nd3 {[%clk 0:00:00]}  Kh8 {[%clk 0:00:00]} 21. Rc2 {[%clk 0:00:00]}  Qh5 {[%clk 0:00:00]} 22. Nd2 {[%clk 0:00:00]}  Rg8 {[%clk 0:00:00]} 23. Qxh5 {[%clk 0:00:00]}  Nxh5 {[%clk 0:00:00]} 24. Nxe4 {[%clk 0:00:00]}  fxe4 {[%clk 0:00:00]} 25. Nf2 {[%clk 0:00:00]}  Ng3 {[%clk 0:00:00]} 26. Rec1 {[%clk 0:00:00]}  Nf5 {[%clk 0:00:00]} 27. Nd1 {[%clk 0:00:00]}  g5 {[%clk 0:00:00]} 28. fxg5 {[%clk 0:00:00]}  Rxg5 {[%clk 0:00:00]} 29. Kf2 {[%clk 0:00:00]}  Bg3+ {[%clk 0:00:00]} 30. Kf1 {[%clk 0:00:00]}  Bh2 {[%clk 0:00:00]} 31. Rc6 {[%clk 0:00:00]}  Ng3+ {[%clk 0:00:00]} 32. Ke1 {[%clk 0:00:00]}  Rf5 {[%clk 0:00:00]} 33. Nf2 {[%clk 0:00:00]}  Bg1 {[%clk 0:00:00]} 34. Ng4 {[%clk 0:00:00]}  Rf1+ {[%clk 0:00:00]} 35. Kd2 {[%clk 0:00:00]}  f5 {[%clk 0:00:00]} 36. Ne5 {[%clk 0:00:00]}  Rf2+ {[%clk 0:00:00]} 37. Kd1 {[%clk 0:00:00]}  Rxg2 {[%clk 0:00:00]} 38. Nf7+ {[%clk 0:00:00]}  Kg7 {[%clk 0:00:00]} 39. Nxd8 {[%clk 0:00:00]}  Bxe3 {[%clk 0:00:00]} 40. Rc7+ {[%clk 0:00:00]}  Kg6 {[%clk 0:00:00]} 41. R1c6+ {[%clk 0:00:00]}  Kg5 {[%clk 0:00:00]} 42. Ne6+ {[%clk 0:00:00]}  Kh4 {[%clk 0:00:00]} 43. Rxh7+ {[%clk 0:00:00]}  Nh5 {[%clk 0:00:00]} 44. Bc1 {[%clk 0:00:00]}  Rg1+ {[%clk 0:00:00]} 45. Ke2 {[%clk 0:00:00]}  f4 {[%clk 0:00:00]} 46. Bxe3 {[%clk 0:00:00]}  fxe3 {[%clk 0:00:00]} 47. Nf4 {[%clk 0:00:00]}  Rh1 {[%clk 0:00:00]} 48. Rxh5+ {[%clk 0:00:00]}  Kg3 {[%clk 0:00:00]} 49. Nxd5 {[%clk 0:00:00]}  Rh2+ {[%clk 0:00:00]} 50. Kxe3 {[%clk 0:00:00]}  Rxa2 {[%clk 0:00:00]} 51. Rg6+ {[%clk 0:00:00]}  Kh2 {[%clk 0:00:00]} 52. Nf4 {[%clk 0:00:00]}  Ra3 {[%clk 0:00:00]} 53. Rg2+ {[%clk 0:00:00]}  Kh1 {[%clk 0:00:00]} 54. Kxe4 {[%clk 0:00:00]}  Rxb3 {[%clk 0:00:00]} 55. Rc2 {[%clk 0:00:00]}  Rg3 {[%clk 0:00:00]} 56. Rf5 {[%clk 0:00:00]}  a5 {[%clk 0:00:00]} 57. Rf6 {[%clk 0:00:00]}  a4 {[%clk 0:00:00]} 58. Rxb6 {[%clk 0:00:00]}  a3 {[%clk 0:00:00]} 59. Rb1+ {[%clk 0:00:00]}  Rg1 {[%clk 0:00:00]} 60. Rxg1+ {[%clk 0:00:00]}  Kxg1 {[%clk 0:00:00]} 61. Ra2 {[%clk 0:00:00]} 1-0


[Site "https://www.chess.com"]

[Event "Titled Tuesday Blitz August 16 Late 2022"]
[White "Peroza, Eduardo Antunes"]
[Black "Fernandez Hernandez, Gerardo"]
[WhiteFideId "2171635"]
[BlackFideId "2207400"]
[WhiteElo "1939"]
[BlackElo "2169"]
[Result "1-0"]
[Round "11"]
[TimeControl "180+1"]
[Date "2022.08.18"]
[WhiteClock "0:00:00"]
[BlackClock "0:00:00"]

1. e4 {[%clk 0:00:00]}  e6 {[%clk 0:00:00]} 2. d4 {[%clk 0:00:00]}  d5 {[%clk 0:00:00]} 3. Nd2 {[%clk 0:00:00]}  Nc6 {[%clk 0:00:00]} 4. Ngf3 {[%clk 0:00:00]}  Nf6 {[%clk 0:00:00]} 5. e5 {[%clk 0:00:00]}  Nd7 {[%clk 0:00:00]} 6. Bb5 {[%clk 0:00:00]}  f6 {[%clk 0:00:00]} 7. O-O {[%clk 0:00:00]}  Be7 {[%clk 0:00:00]} 8. Re1 {[%clk 0:00:00]}  O-O {[%clk 0:00:00]} 9. Nf1 {[%clk 0:00:00]}  fxe5 {[%clk 0:00:00]} 10. Nxe5 {[%clk 0:00:00]}  Ncxe5 {[%clk 0:00:00]} 11. dxe5 {[%clk 0:00:00]}  a6 {[%clk 0:00:00]} 12. Bd3 {[%clk 0:00:00]}  Qe8 {[%clk 0:00:00]} 13. c3 {[%clk 0:00:00]}  Qf7 {[%clk 0:00:00]} 14. Qc2 {[%clk 0:00:00]}  Qh5 {[%clk 0:00:00]} 15. Ng3 {[%clk 0:00:00]}  Qh4 {[%clk 0:00:00]} 16. Nf1 {[%clk 0:00:00]}  Nc5 {[%clk 0:00:00]} 17. g3 {[%clk 0:00:00]}  Nxd3 {[%clk 0:00:00]} 18. gxh4 {[%clk 0:00:00]}  Nxe1 {[%clk 0:00:00]} 19. Qe2 {[%clk 0:00:00]}  Nf3+ {[%clk 0:00:00]} 20. Kh1 {[%clk 0:00:00]}  Bxh4 {[%clk 0:00:00]} 21. Ng3 {[%clk 0:00:00]}  Bd7 {[%clk 0:00:00]} 22. Be3 {[%clk 0:00:00]}  Bb5 {[%clk 0:00:00]} 23. Qc2 {[%clk 0:00:00]}  Nxe5 {[%clk 0:00:00]} 24. Bd4 {[%clk 0:00:00]}  Nf3 {[%clk 0:00:00]} 25. Nh5 {[%clk 0:00:00]}  e5 {[%clk 0:00:00]} 26. Be3 {[%clk 0:00:00]}  d4 {[%clk 0:00:00]} 27. cxd4 {[%clk 0:00:00]}  exd4 {[%clk 0:00:00]} 28. Bd2 {[%clk 0:00:00]}  Bc6 {[%clk 0:00:00]} 29. Qc4+ {[%clk 0:00:00]}  Kh8 {[%clk 0:00:00]} 30. Bf4 {[%clk 0:00:00]}  Nd2+ {[%clk 0:00:00]} 31. Qxc6 {[%clk 0:00:00]}  bxc6 {[%clk 0:00:00]} 32. Bxd2 {[%clk 0:00:00]}  Rxf2 {[%clk 0:00:00]} 33. Bb4 {[%clk 0:00:00]}  Rxb2 {[%clk 0:00:00]} 34. Bc5 {[%clk 0:00:00]}  Rd2 {[%clk 0:00:00]} 35. Rg1 {[%clk 0:00:00]}  Rg8 {[%clk 0:00:00]} 36. Nf4 {[%clk 0:00:00]}  Bf6 {[%clk 0:00:00]} 37. Rg4 {[%clk 0:00:00]}  Re8 {[%clk 0:00:00]} 38. Ng2 {[%clk 0:00:00]}  Ree2 {[%clk 0:00:00]} 39. h4 {[%clk 0:00:00]} 1-0


[Site "https://www.chess.com"]

[Event "Titled Tuesday Blitz August 16 Late 2022"]
[White "Pinheiro, Iung Alicio de O."]
[Black "Prydun, Andriy"]
[WhiteFideId "2104350"]
[BlackFideId "14145898"]
[WhiteElo "2283"]
[BlackElo "2163"]
[Result "1-0"]
[Round "11"]
[TimeControl "180+1"]
[Date "2022.08.16"]
[WhiteClock "0:01:07"]
[BlackClock "0:00:02"]

1. d4 {[%clk 0:03:00]}  Nf6 {[%clk 0:02:59]} 2. c4 {[%clk 0:02:54]}  c6 {[%clk 0:02:58]} 3. Nc3 {[%clk 0:02:53]}  d5 {[%clk 0:02:58]} 4. cxd5 {[%clk 0:02:53]}  cxd5 {[%clk 0:02:59]} 5. Bf4 {[%clk 0:02:53]}  Nc6 {[%clk 0:02:56]} 6. e3 {[%clk 0:02:53]}  Bg4 {[%clk 0:02:52]} 7. Qb3 {[%clk 0:02:48]}  Na5 {[%clk 0:02:51]} 8. Qa4+ {[%clk 0:02:48]}  Bd7 {[%clk 0:02:50]} 9. Qc2 {[%clk 0:02:48]}  Rc8 {[%clk 0:02:37]} 10. Nf3 {[%clk 0:02:38]}  e6 {[%clk 0:02:17]} 11. Bd3 {[%clk 0:02:33]}  Bb4 {[%clk 0:01:57]} 12. O-O {[%clk 0:02:28]}  h6 {[%clk 0:01:48]} 13. h3 {[%clk 0:02:15]}  O-O {[%clk 0:01:46]} 14. Rac1 {[%clk 0:02:14]}  a6 {[%clk 0:01:32]} 15. Qe2 {[%clk 0:02:10]}  Qe7 {[%clk 0:01:20]} 16. Ne5 {[%clk 0:01:41]}  Rfd8 {[%clk 0:00:25]} 17. g4 {[%clk 0:01:33]}  Ne8 {[%clk 0:00:24]} 18. Bb1 {[%clk 0:01:24]}  f6 {[%clk 0:00:02]} 19. Qc2 {[%clk 0:01:07]} 1-0


[Site "https://www.chess.com"]

[Event "Titled Tuesday Blitz August 16 Late 2022"]
[White "Riehle, Marco"]
[Black "Avila Pavas, Santiago"]
[WhiteFideId "12904392"]
[BlackFideId "4437128"]
[WhiteElo "2462"]
[BlackElo "2291"]
[Result "0-1"]
[Round "11"]
[TimeControl "180+1"]
[Date "2022.08.16"]
[WhiteClock "0:02:19"]
[BlackClock "0:01:41"]

1. e4 {[%clk 0:02:59]}  Nf6 {[%clk 0:03:00]} 2. e5 {[%clk 0:02:59]}  Nd5 {[%clk 0:03:01]} 3. Nc3 {[%clk 0:02:56]}  Nxc3 {[%clk 0:03:01]} 4. dxc3 {[%clk 0:02:57]}  d6 {[%clk 0:03:02]} 5. Nf3 {[%clk 0:02:55]}  Nc6 {[%clk 0:03:02]} 6. Bb5 {[%clk 0:02:49]}  Bd7 {[%clk 0:03:02]} 7. O-O {[%clk 0:02:47]}  Nxe5 {[%clk 0:02:52]} 8. Nxe5 {[%clk 0:02:47]}  dxe5 {[%clk 0:02:52]} 9. Bc4 {[%clk 0:02:47]}  e6 {[%clk 0:02:42]} 10. Qh5 {[%clk 0:02:44]}  Qf6 {[%clk 0:02:37]} 11. Rd1 {[%clk 0:02:43]}  Bd6 {[%clk 0:02:35]} 12. Be3 {[%clk 0:02:38]}  O-O {[%clk 0:02:28]} 13. Bd3 {[%clk 0:02:38]}  h6 {[%clk 0:02:28]} 14. Be4 {[%clk 0:02:34]}  Bc6 {[%clk 0:02:26]} 15. Bxc6 {[%clk 0:02:34]}  bxc6 {[%clk 0:02:26]} 16. c4 {[%clk 0:02:34]}  c5 {[%clk 0:02:23]} 17. Qg4 {[%clk 0:02:27]}  Rad8 {[%clk 0:01:54]} 18. Qe4 {[%clk 0:02:21]}  Qf5 {[%clk 0:01:48]} 19. Qb7 {[%clk 0:02:21]}  Qxc2 {[%clk 0:01:46]} 20. Qxa7 {[%clk 0:02:21]}  Qxb2 {[%clk 0:01:44]} 21. a4 {[%clk 0:02:19]}  Ra8 {[%clk 0:01:41]} 0-1


[Site "https://www.chess.com"]

[Event "Titled Tuesday Blitz August 16 Late 2022"]
[White "Roman, Rodrigo"]
[Black "Przybylski, Wojciech"]
[WhiteFideId "3701220"]
[BlackFideId "1117599"]
[WhiteElo "2001"]
[BlackElo "2133"]
[Result "0-1"]
[Round "11"]
[TimeControl "180+1"]
[Date "2022.08.18"]
[WhiteClock "0:00:00"]
[BlackClock "0:00:00"]

1. e4 {[%clk 0:00:00]}  e5 {[%clk 0:00:00]} 2. Nf3 {[%clk 0:00:00]}  Nf6 {[%clk 0:00:00]} 3. Nxe5 {[%clk 0:00:00]}  d6 {[%clk 0:00:00]} 4. Nf3 {[%clk 0:00:00]}  Nxe4 {[%clk 0:00:00]} 5. d4 {[%clk 0:00:00]}  d5 {[%clk 0:00:00]} 6. Bd3 {[%clk 0:00:00]}  Bd6 {[%clk 0:00:00]} 7. O-O {[%clk 0:00:00]}  O-O {[%clk 0:00:00]} 8. c4 {[%clk 0:00:00]}  c6 {[%clk 0:00:00]} 9. Qb3 {[%clk 0:00:00]}  Na6 {[%clk 0:00:00]} 10. Nc3 {[%clk 0:00:00]}  Bg4 {[%clk 0:00:00]} 11. Nxe4 {[%clk 0:00:00]}  dxe4 {[%clk 0:00:00]} 12. Bxe4 {[%clk 0:00:00]}  f5 {[%clk 0:00:00]} 13. Bb1 {[%clk 0:00:00]}  Bxf3 {[%clk 0:00:00]} 14. Qxf3 {[%clk 0:00:00]}  Qh4 {[%clk 0:00:00]} 15. h3 {[%clk 0:00:00]}  Qxd4 {[%clk 0:00:00]} 16. Bxf5 {[%clk 0:00:00]}  Qe5 {[%clk 0:00:00]} 17. Bxh7+ {[%clk 0:00:00]}  Kxh7 {[%clk 0:00:00]} 18. Qd3+ {[%clk 0:00:00]}  Kg8 {[%clk 0:00:00]} 19. f4 {[%clk 0:00:00]}  Qc5+ {[%clk 0:00:00]} 20. Kh1 {[%clk 0:00:00]}  Rad8 {[%clk 0:00:00]} 21. Be3 {[%clk 0:00:00]}  Qf5 {[%clk 0:00:00]} 22. Qb3 {[%clk 0:00:00]}  Nc5 {[%clk 0:00:00]} 23. Bxc5 {[%clk 0:00:00]}  Bxc5 {[%clk 0:00:00]} 24. Qxb7 {[%clk 0:00:00]}  Rd6 {[%clk 0:00:00]} 25. Rae1 {[%clk 0:00:00]}  Rh6 {[%clk 0:00:00]} 26. Rf3 {[%clk 0:00:00]}  Bd6 {[%clk 0:00:00]} 27. Qxc6 {[%clk 0:00:00]}  Bb4 {[%clk 0:00:00]} 28. Qe4 {[%clk 0:00:00]}  Bxe1 {[%clk 0:00:00]} 29. Qxe1 {[%clk 0:00:00]}  Re6 {[%clk 0:00:00]} 30. Qd2 {[%clk 0:00:00]}  Kh8 {[%clk 0:00:00]} 31. Kh2 {[%clk 0:00:00]}  Qe4 {[%clk 0:00:00]} 32. b3 {[%clk 0:00:00]}  Rfe8 {[%clk 0:00:00]} 33. Qd7 {[%clk 0:00:00]}  R6e7 {[%clk 0:00:00]} 34. Qg4 {[%clk 0:00:00]}  Kg8 {[%clk 0:00:00]} 35. Qg5 {[%clk 0:00:00]}  Rf7 {[%clk 0:00:00]} 36. Kg3 {[%clk 0:00:00]}  Rf5 {[%clk 0:00:00]} 37. Qg4 {[%clk 0:00:00]}  Re6 {[%clk 0:00:00]} 38. Kh2 {[%clk 0:00:00]}  Rf7 {[%clk 0:00:00]} 39. Rf2 {[%clk 0:00:00]}  a5 {[%clk 0:00:00]} 40. f5 {[%clk 0:00:00]}  Qxg4 {[%clk 0:00:00]} 41. hxg4 {[%clk 0:00:00]}  Re4 {[%clk 0:00:00]} 42. Kg3 {[%clk 0:00:00]}  a4 {[%clk 0:00:00]} 43. Rf3 {[%clk 0:00:00]}  a3 {[%clk 0:00:00]} 44. Rf2 {[%clk 0:00:00]}  Re1 {[%clk 0:00:00]} 45. Rd2 {[%clk 0:00:00]}  Rb1 {[%clk 0:00:00]} 46. Kf4 {[%clk 0:00:00]}  Rb2 {[%clk 0:00:00]} 47. Rd8+ {[%clk 0:00:00]}  Rf8 {[%clk 0:00:00]} 48. Rd7 {[%clk 0:00:00]}  Rxa2 {[%clk 0:00:00]} 49. Ra7 {[%clk 0:00:00]}  Rb8 {[%clk 0:00:00]} 50. Kg5 {[%clk 0:00:00]}  Rxg2 {[%clk 0:00:00]} 51. Rxa3 {[%clk 0:00:00]}  Rg3 {[%clk 0:00:00]} 52. Kh4 {[%clk 0:00:00]}  Rgxb3 {[%clk 0:00:00]} 53. Ra7 {[%clk 0:00:00]}  R3b7 {[%clk 0:00:00]} 54. Ra6 {[%clk 0:00:00]}  Rc7 {[%clk 0:00:00]} 55. Kg5 {[%clk 0:00:00]}  Rbc8 {[%clk 0:00:00]} 56. f6 {[%clk 0:00:00]}  Rc5+ {[%clk 0:00:00]} 57. Kg6 {[%clk 0:00:00]}  gxf6 {[%clk 0:00:00]} 58. g5 {[%clk 0:00:00]}  fxg5 {[%clk 0:00:00]} 59. Kf6 {[%clk 0:00:00]}  Rxc4 {[%clk 0:00:00]} 60. Kxg5 {[%clk 0:00:00]}  R4c5+ {[%clk 0:00:00]} 61. Kg4 {[%clk 0:00:00]}  R8c6 {[%clk 0:00:00]} 62. Kf3 {[%clk 0:00:00]}  Rxa6 {[%clk 0:00:00]} 63. Ke3 {[%clk 0:00:00]}  Rd6 {[%clk 0:00:00]} 64. Ke4 {[%clk 0:00:00]}  Kf7 {[%clk 0:00:00]} 65. Kf4 {[%clk 0:00:00]}  Ke7 {[%clk 0:00:00]} 66. Ke3 {[%clk 0:00:00]}  Re5+ {[%clk 0:00:00]} 67. Kf4 {[%clk 0:00:00]}  Ree6 {[%clk 0:00:00]} 68. Kf5 {[%clk 0:00:00]}  Kf7 {[%clk 0:00:00]} 69. Kg5 {[%clk 0:00:00]}  Rd5+ {[%clk 0:00:00]} 70. Kf4 {[%clk 0:00:00]}  Rc5 {[%clk 0:00:00]} 71. Kg4 {[%clk 0:00:00]}  Kg6 {[%clk 0:00:00]} 72. Kf4 {[%clk 0:00:00]}  Rf5+ {[%clk 0:00:00]} 73. Kg4 {[%clk 0:00:00]}  Kf6 {[%clk 0:00:00]} 74. Kg3 {[%clk 0:00:00]}  Ke5 {[%clk 0:00:00]} 75. Kg4 {[%clk 0:00:00]}  Rg6+ {[%clk 0:00:00]} 76. Kh4 {[%clk 0:00:00]}  Rf8 {[%clk 0:00:00]} 77. Kh5 {[%clk 0:00:00]}  Rg1 {[%clk 0:00:00]} 78. Kh6 {[%clk 0:00:00]}  Rh8# {[%clk 0:00:00]} 0-1


[Site "https://www.chess.com"]